lending/lending_fUSD_20250114
["ID","MTS","AMOUNT","RATE_DAILY","PERIOD"]
[348857835,1736818241682,-500.0,9.885e-05,2]
[348857836,1736818241691,-500.0,9.885e-05,2]
[348857837,1736818241701,-500.0,9.885e-05,2]
[348857838,1736818241710,-503.59507046,9.885e-05,2]
[348857839,1736818241719,-1689.0,9.885e-05,2]
[348857840,1736818241728,-2668.19,9.885e-05,2]
[348857841,1736818241737,-500.0,9.885e-05,2]
[348857842,1736818241746,-762.08,9.885e-05,2]
[348857843,1736818241755,-509.98806859,9.885e-05,2]
[348857844,1736818241765,-500.0,9.885e-05,2]
[348857845,1736818241773,-500.0,9.885e-05,2]
[348857846,1736818241783,-995.48,9.885e-05,2]
[348857847,1736818241791,-346.11751151,9.886e-05,2]
[348857848,1736818241801,-500.0,9.886e-05,2]
[348857849,1736818241813,-500.0,9.886e-05,2]
[348857850,1736818241822,-396.52346096,9.886e-05,2]
[348857851,1736818241831,-500.0,9.886e-05,2]
[348857852,1736818241840,-500.0,9.886e-05,2]
[348857853,1736818241849,-500.0,9.886e-05,2]
[348857854,1736818241859,-179.78284195,9.886e-05,2]
[348857855,1736818241868,-500.0,9.886e-05,2]
[348857856,1736818241877,-569.06601652,9.886e-05,2]
[348857857,1736818241886,-500.0,9.886e-05,2]
[348857858,1736818241895,-500.0,9.886e-05,2]
[348857859,1736818241904,-500.0,9.886e-05,2]
[348857860,1736818241914,-500.0,9.886e-05,2]
[348857861,1736818241924,-500.0,9.886e-05,2]
[348857862,1736818241933,-500.0,9.886e-05,2]
[348857863,1736818241942,-500.0,9.886e-05,2]
[348857864,1736818241951,-500.0,9.886e-05,2]
[348857865,1736818241961,-500.0,9.886e-05,2]
[348857866,1736818241971,-500.0,9.886e-05,2]
[348857867,1736818241980,-500.0,9.886e-05,2]
[348857868,1736818241989,-500.0,9.886e-05,2]
[348857869,1736818241998,-500.0,9.886e-05,2]
[348857870,1736818242008,-500.0,9.886e-05,2]
[348857871,1736818242017,-500.0,9.886e-05,2]
[348857872,1736818242026,-500.0,9.886e-05,2]
[348857873,1736818242035,-500.0,9.886e-05,2]
[348857874,1736818242045,-500.0,9.886e-05,2]
[348857875,1736818242054,-468.8,9.886e-05,2]
[348857876,1736818242065,-500.0,9.886e-05,2]
[348857877,1736818242074,-500.0,9.886e-05,2]
[348857878,1736818242083,-500.0,9.886e-05,2]
[348857879,1736818242092,-500.0,9.886e-05,2]
[348857880,1736818242101,-500.0,9.886e-05,2]
[348857881,1736818242111,-500.0,9.886e-05,2]
[348857882,1736818242120,-500.0,9.886e-05,2]
[348857883,1736818242130,-500.0,9.886e-05,2]
[348857884,1736818242139,-500.0,9.886e-05,2]
[348857885,1736818242149,-500.0,9.886e-05,2]
[348857886,1736818242158,-500.0,9.886e-05,2]
[348857887,1736818242167,-500.0,9.886e-05,2]
[348857888,1736818242176,-500.0,9.886e-05,2]
[348857889,1736818242185,-848.97,9.886e-05,2]
[348857890,1736818242194,-500.0,9.886e-05,2]
[348857891,1736818242204,-805.46,9.886e-05,2]
[348857892,1736818242213,-500.0,9.886e-05,2]
[348857893,1736818242222,-500.0,9.886e-05,2]
[348857894,1736818242231,-500.0,9.886e-05,2]
[348857895,1736818242240,-500.0,9.886e-05,2]
[348857896,1736818242249,-509.63,9.886e-05,2]
[348857897,1736818242258,-500.0,9.886e-05,2]
[348857898,1736818242267,-500.0,9.886e-05,2]
[348857899,1736818242276,-500.0,9.886e-05,2]
[348857900,1736818242285,-500.0,9.886e-05,2]
[348857901,1736818242294,-1579.44,9.887e-05,2]
[348857902,1736818242303,-908.41,9.887e-05,2]
[348857903,1736818242314,-1011.28,9.887e-05,2]
[348857904,1736818242323,-865.8,9.887e-05,2]
[348857905,1736818242332,-420.0,9.924e-05,2]
[348857906,1736818242342,-428.03337249,9.973e-05,2]
[348857907,1736818242351,-2075.28201542,9.994e-05,2]
[348857908,1736818242364,-6064.58637402,9.994e-05,2]
[348857909,1736818242373,-19665.01629223,9.994e-05,2]
[348857910,1736818242382,-500.0,9.998e-05,2]
[348857911,1736818242392,-240.02750494,9.998e-05,2]
[348857912,1736818242402,-1359.82,9.998e-05,2]
[348857913,1736818242413,-1257.11,9.998e-05,2]
[348857914,1736818242423,-1581.53,9.998e-05,2]
[348857915,1736818242436,-780.07,9.999e-05,2]
[348857916,1736818242446,-1952.22,9.999e-05,2]
[348857917,1736818242456,-500.0,9.999e-05,2]
[348857918,1736818242465,-636.23,9.999e-05,2]
[348857919,1736818242476,-500.0,9.999e-05,2]
[348857920,1736818242487,-500.0,9.999e-05,2]
[348857921,1736818242498,-500.0,9.999e-05,2]
[348857922,1736818242510,-1272.83,9.999e-05,2]
[348857923,1736818242520,-500.0,9.999e-05,2]
[348857924,1736818242531,-500.0,9.999e-05,2]
[348857925,1736818242540,-500.0,9.999e-05,2]
[348857926,1736818242550,-500.0,9.999e-05,2]
[348857927,1736818242560,-500.0,9.999e-05,2]
[348857928,1736818242571,-500.0,9.999e-05,2]
[348857929,1736818242580,-500.0,9.999e-05,2]
[348857930,1736818242590,-500.0,9.999e-05,2]
[348857931,1736818242599,-500.0,9.999e-05,2]
[348857932,1736818242608,-500.0,9.999e-05,2]
[348857933,1736818242617,-500.0,9.999e-05,2]
[348857934,1736818242626,-500.0,9.999e-05,2]
[348857935,1736818242635,-1498.82,9.999e-05,2]
[348857936,1736818242644,-500.0,9.999e-05,2]
[348857937,1736818242654,-500.0,9.999e-05,2]
[348857938,1736818242663,-500.0,9.999e-05,2]
[348857939,1736818242672,-500.0,9.999e-05,2]
[348857940,1736818242680,-500.0,9.999e-05,2]
[348857941,1736818242689,-500.0,9.999e-05,2]
[348857942,1736818242698,-500.0,9.999e-05,2]
[348857943,1736818242707,-500.0,9.999e-05,2]
[348857944,1736818242716,-500.0,9.999e-05,2]
[348857945,1736818242725,-500.0,9.999e-05,2]
[348857946,1736818242734,-500.0,9.999e-05,2]
[348857947,1736818242743,-599.63,9.999e-05,2]
[348857948,1736818242752,-500.0,9.999e-05,2]
[348857949,1736818242761,-500.0,9.999e-05,2]
[348857950,1736818242771,-500.0,9.999e-05,2]
[348857951,1736818242780,-500.0,9.999e-05,2]
[348857952,1736818242789,-500.0,9.999e-05,2]
[348857953,1736818242798,-500.0,9.999e-05,2]
[348857954,1736818242807,-500.0,9.999e-05,2]
[348857955,1736818242818,-500.0,9.999e-05,2]
[348857956,1736818242827,-500.0,9.999e-05,2]
[348857957,1736818242837,-500.0,9.999e-05,2]
[348857958,1736818242846,-500.0,9.999e-05,2]
[348857959,1736818242856,-500.0,9.999e-05,2]
[348857960,1736818242865,-500.0,9.999e-05,2]
[348857961,1736818242875,-1000.0,9.999e-05,2]
[348857962,1736818242884,-500.0,9.999e-05,2]
[348857963,1736818242893,-328.60980841,9.999e-05,2]
[348857969,1736818243374,-171.39019159,9.999e-05,2]
[348857970,1736818243384,-500.0,9.999e-05,2]
[348857971,1736818243394,-500.0,9.999e-05,2]
[348857972,1736818243403,-500.0,9.999e-05,2]
[348857973,1736818243412,-500.0,9.999e-05,2]
[348857974,1736818243421,-898.2,9.999e-05,2]
[348857975,1736818243436,-500.0,9.999e-05,2]
[348857976,1736818243445,-500.0,9.999e-05,2]
[348857977,1736818243455,-500.0,9.999e-05,2]
[348857978,1736818243464,-500.0,9.999e-05,2]
[348857979,1736818243474,-500.0,9.999e-05,2]
[348857980,1736818243484,-500.0,9.999e-05,2]
[348857981,1736818243493,-500.0,9.999e-05,2]
[348857982,1736818243503,-500.0,9.999e-05,2]
[348857983,1736818243512,-500.0,9.999e-05,2]
[348857984,1736818243521,-500.0,9.999e-05,2]
[348857985,1736818243530,-500.0,9.999e-05,2]
[348857986,1736818243539,-500.0,9.999e-05,2]
[348857987,1736818243549,-500.0,9.999e-05,2]
[348857988,1736818243558,-500.0,9.999e-05,2]
[348857989,1736818243567,-500.0,9.999e-05,2]
[348857990,1736818243576,-500.0,9.999e-05,2]
[348857991,1736818243585,-500.0,9.999e-05,2]
[348857992,1736818243595,-500.0,9.999e-05,2]
[348857993,1736818243604,-500.0,9.999e-05,2]
[348857994,1736818243613,-500.0,9.999e-05,2]
[348857995,1736818243622,-500.0,9.999e-05,2]
[348857996,1736818243631,-500.0,9.999e-05,2]
[348857997,1736818243640,-500.0,9.999e-05,2]
[348857998,1736818243649,-2049.06,9.999e-05,2]
[348857999,1736818243658,-500.0,9.999e-05,2]
[348858000,1736818243667,-500.0,9.999e-05,2]
[348858001,1736818243676,-500.0,9.999e-05,2]
[348858002,1736818243685,-500.0,9.999e-05,2]
[348858003,1736818243696,-500.0,9.999e-05,2]
[348858004,1736818243705,-500.0,9.999e-05,2]
[348858005,1736818243714,-500.0,9.999e-05,2]
[348858006,1736818243723,-500.0,9.999e-05,2]
[348858007,1736818243734,-500.0,9.999e-05,2]
[348858008,1736818243743,-500.0,9.999e-05,2]
[348858009,1736818243753,-500.0,9.999e-05,2]
[348858010,1736818243762,-500.0,9.999e-05,2]
[348858011,1736818243772,-500.0,9.999e-05,2]
[348858012,1736818243782,-500.0,9.999e-05,2]
[348858013,1736818243792,-500.0,9.999e-05,2]
[348858014,1736818243801,-500.0,9.999e-05,2]
[348858015,1736818243811,-500.0,9.999e-05,2]
[348858016,1736818243820,-500.0,9.999e-05,2]
[348858017,1736818243829,-500.0,9.999e-05,2]
[348858018,1736818243838,-500.0,9.999e-05,2]
[348858019,1736818243847,-500.0,9.999e-05,2]
[348858020,1736818243857,-500.0,9.999e-05,2]
[348858021,1736818243867,-500.0,9.999e-05,2]
[348858022,1736818243876,-500.0,9.999e-05,2]
[348858023,1736818243886,-1656.47,9.999e-05,2]
[348858024,1736818243895,-500.0,9.999e-05,2]
[348858025,1736818243906,-500.0,9.999e-05,2]
[348858026,1736818243916,-500.0,9.999e-05,2]
[348858027,1736818243926,-500.0,9.999e-05,2]
[348858028,1736818243935,-500.0,9.999e-05,2]
[348858029,1736818243944,-500.0,9.999e-05,2]
[348858030,1736818243954,-500.0,9.999e-05,2]
[348858031,1736818243963,-500.0,9.999e-05,2]
[348858032,1736818243974,-500.0,9.999e-05,2]
[348858033,1736818243984,-500.0,9.999e-05,2]
[348858034,1736818243994,-500.0,9.999e-05,2]
[348858035,1736818244003,-500.0,9.999e-05,2]
[348858036,1736818244012,-500.0,9.999e-05,2]
[348858038,1736818244022,-500.0,9.999e-05,2]
[348858040,1736818244031,-500.0,9.999e-05,2]
[348858041,1736818244043,-251.09839488,9.999e-05,2]
[348858042,1736818244052,-500.0,9.999e-05,2]
[348858043,1736818244061,-342.56172764,9.999e-05,2]
[348858044,1736818244070,-533.40259271,9.999e-05,2]
[348858045,1736818244079,-500.0,9.999e-05,2]
[348858046,1736818244089,-500.0,9.999e-05,2]
[348858047,1736818244098,-500.0,9.999e-05,2]
[348858048,1736818244107,-500.0,9.999e-05,2]
[348858049,1736818244117,-500.0,9.999e-05,2]
[348858050,1736818244126,-500.0,9.999e-05,2]
[348858051,1736818244135,-500.0,9.999e-05,2]
[348858052,1736818244144,-634.89667142,9.999e-05,2]
[348858053,1736818244153,-490.58433923,9.999e-05,2]
[348858054,1736818244164,-500.0,9.999e-05,2]
[348858055,1736818244174,-500.0,9.999e-05,2]
[348858056,1736818244184,-500.0,9.999e-05,2]
[348858058,1736818244193,-500.0,9.999e-05,2]
[348858059,1736818244202,-500.0,9.999e-05,2]
[348858060,1736818244211,-500.0,9.999e-05,2]
[348858061,1736818244221,-500.0,9.999e-05,2]
[348858062,1736818244230,-500.0,9.999e-05,2]
[348858063,1736818244239,-500.0,9.999e-05,2]
[348858064,1736818244249,-500.0,9.999e-05,2]
[348858065,1736818244259,-500.0,9.999e-05,2]
[348858066,1736818244268,-500.0,9.999e-05,2]
[348858067,1736818244278,-500.0,9.999e-05,2]
[348858068,1736818244287,-500.0,9.999e-05,2]
[348858069,1736818244296,-500.0,9.999e-05,2]
[348858070,1736818244305,-500.0,9.999e-05,2]
[348858071,1736818244315,-500.0,9.999e-05,2]
[348858072,1736818244324,-500.0,9.999e-05,2]
[348858073,1736818244333,-500.0,9.999e-05,2]
[348858074,1736818244343,-500.0,9.999e-05,2]
[348858075,1736818244352,-500.0,9.999e-05,2]
[348858076,1736818244361,-500.0,9.999e-05,2]
[348858077,1736818244369,-500.0,9.999e-05,2]
[348858078,1736818244379,-500.0,9.999e-05,2]
[348858079,1736818244388,-500.0,9.999e-05,2]
[348858080,1736818244397,-500.0,9.999e-05,2]
[348858081,1736818244406,-500.0,9.999e-05,2]
[348858082,1736818244416,-512.61193536,9.999e-05,2]
[348858083,1736818244428,-500.0,9.999e-05,2]
[348858084,1736818244437,-500.0,9.999e-05,2]
[348858085,1736818244447,-517.41701585,9.999e-05,2]
[348858086,1736818244457,-500.0,9.999e-05,2]
[348858087,1736818244467,-500.0,9.999e-05,2]
[348858088,1736818244477,-599.27035103,9.999e-05,2]
[348858089,1736818244486,-500.0,9.999e-05,2]
[348858090,1736818244496,-500.0,9.999e-05,2]
[348858091,1736818244507,-500.0,9.999e-05,2]
[348858092,1736818244517,-500.0,9.999e-05,2]
[348858093,1736818244526,-500.0,9.999e-05,2]
[348858094,1736818244535,-500.0,9.999e-05,2]
[348858095,1736818244544,-316.85072392,9.999e-05,2]
[348858096,1736818244553,-624.4926893,9.999e-05,2]
[348858097,1736818244563,-500.0,9.999e-05,2]
[348858098,1736818244572,-500.0,9.999e-05,2]
[348858099,1736818244581,-500.0,9.999e-05,2]
[348858100,1736818244591,-500.0,9.999e-05,2]
[348858101,1736818244601,-500.0,9.999e-05,2]
[348858102,1736818244610,-500.0,9.999e-05,2]
[348858103,1736818244619,-500.0,9.999e-05,2]
[348858104,1736818244629,-500.0,9.999e-05,2]
[348858105,1736818244638,-500.0,9.999e-05,2]
[348858106,1736818244647,-500.0,9.999e-05,2]
[348858107,1736818244656,-500.0,9.999e-05,2]
[348858108,1736818244665,-500.0,9.999e-05,2]
[348858109,1736818244674,-500.0,9.999e-05,2]
[348858110,1736818244683,-500.0,9.999e-05,2]
[348858111,1736818244693,-500.0,9.999e-05,2]
[348858112,1736818244702,-500.0,9.999e-05,2]
[348858113,1736818244711,-500.0,9.999e-05,2]
[348858114,1736818244721,-500.0,9.999e-05,2]
[348858115,1736818244730,-395.73691582,9.999e-05,2]
[348858116,1736818244739,-533.18787907,9.999e-05,2]
[348858117,1736818244748,-500.0,9.999e-05,2]
[348858118,1736818244758,-500.0,9.999e-05,2]
[348858119,1736818244767,-500.0,9.999e-05,2]
[348858120,1736818244776,-500.0,9.999e-05,2]
[348858121,1736818244785,-500.0,9.999e-05,2]
[348858122,1736818244796,-490.66319289,9.999e-05,2]
[348858123,1736818244805,-500.0,9.999e-05,2]
[348858124,1736818244815,-500.0,9.999e-05,2]
[348858125,1736818244824,-500.0,9.999e-05,2]
[348858126,1736818244833,-500.0,9.999e-05,2]
[348858127,1736818244842,-500.0,9.999e-05,2]
[348858128,1736818244853,-500.0,9.999e-05,2]
[348858129,1736818244863,-500.0,9.999e-05,2]
[348858130,1736818244873,-500.0,9.999e-05,2]
[348858131,1736818244882,-500.0,9.999e-05,2]
[348858132,1736818244892,-414.25,9.999e-05,2]
[348858133,1736818244902,-500.0,9.999e-05,2]
[348858134,1736818244912,-500.0,9.999e-05,2]
[348858135,1736818244921,-500.0,9.999e-05,2]
[348858136,1736818244930,-500.0,9.999e-05,2]
[348858137,1736818244939,-500.0,9.999e-05,2]
[348858138,1736818244948,-500.0,9.999e-05,2]
[348858139,1736818244957,-500.0,9.999e-05,2]
[348858140,1736818244966,-500.0,9.999e-05,2]
[348858141,1736818244975,-500.0,9.999e-05,2]
[348858142,1736818244984,-500.0,9.999e-05,2]
[348858143,1736818244993,-500.0,9.999e-05,2]
[348858144,1736818245003,-500.0,9.999e-05,2]
[348858145,1736818245012,-500.0,9.999e-05,2]
[348858146,1736818245021,-500.0,9.999e-05,2]
[348858147,1736818245030,-500.0,9.999e-05,2]
[348858148,1736818245039,-500.0,9.999e-05,2]
[348858149,1736818245048,-500.0,9.999e-05,2]
[348858150,1736818245058,-500.0,9.999e-05,2]
[348858151,1736818245067,-500.0,9.999e-05,2]
[348858152,1736818245075,-500.0,9.999e-05,2]
[348858153,1736818245084,-354.85537929,9.999e-05,2]
[348858154,1736818245175,-145.14462071,9.999e-05,2]
[348858155,1736818245184,-500.0,9.999e-05,2]
[348858156,1736818245193,-500.0,9.999e-05,2]
[348858157,1736818245202,-500.0,9.999e-05,2]
[348858158,1736818245211,-500.0,9.999e-05,2]
[348858159,1736818245220,-500.0,9.999e-05,2]
[348858160,1736818245229,-500.0,9.999e-05,2]
[348858161,1736818245238,-500.0,9.999e-05,2]
[348858162,1736818245248,-500.0,9.999e-05,2]
[348858163,1736818245257,-238.78187239,9.999e-05,2]
[348858164,1736818245266,-500.0,9.999e-05,2]
[348858165,1736818245275,-500.0,9.999e-05,2]
[348858166,1736818245284,-626.83,9.999e-05,2]
[348858167,1736818245293,-500.0,9.999e-05,2]
[348858168,1736818245303,-500.0,9.999e-05,2]
[348858169,1736818245317,-500.0,9.999e-05,2]
[348858170,1736818245327,-500.0,9.999e-05,2]
[348858171,1736818245337,-500.0,9.999e-05,2]
[348858172,1736818245347,-210.133804,9.999e-05,2]
[348858173,1736818245359,-289.866196,9.999e-05,2]
[348858174,1736818245369,-571.77525734,9.999e-05,2]
[348858175,1736818245380,-164.44474266,9.999e-05,2]
[348858176,1736818245390,-500.0,9.999e-05,2]
[348858177,1736818245399,-150.15525734,9.999e-05,2]
[348858178,1736818245446,-349.84474266,9.999e-05,2]
[348858179,1736818245455,-500.0,9.999e-05,2]
[348858180,1736818245467,-500.0,9.999e-05,2]
[348858181,1736818245476,-500.0,9.999e-05,2]
[348858182,1736818245485,-2512.53,9.999e-05,2]
[348858183,1736818245495,-500.0,9.999e-05,2]
[348858184,1736818245505,-500.0,9.999e-05,2]
[348858185,1736818245514,-500.0,9.999e-05,2]
[348858186,1736818245524,-500.0,9.999e-05,2]
[348858187,1736818245534,-500.0,9.999e-05,2]
[348858188,1736818245543,-500.0,9.999e-05,2]
[348858189,1736818245552,-500.0,9.999e-05,2]
[348858190,1736818245561,-568.73621117,9.999e-05,2]
[348858191,1736818245571,-500.0,9.999e-05,2]
[348858192,1736818245580,-500.0,9.999e-05,2]
[348858193,1736818245589,-500.0,9.999e-05,2]
[348858194,1736818245599,-500.0,9.999e-05,2]
[348858195,1736818245608,-500.0,9.999e-05,7]
[348858196,1736818245617,-500.0,9.999e-05,2]
[348858197,1736818245626,-500.0,9.999e-05,2]
[348858198,1736818245635,-150.80703047,9.999e-05,2]
[348858199,1736818245645,-500.0,9.999e-05,2]
[348858200,1736818245654,-500.0,9.999e-05,2]
[348858201,1736818245663,-500.0,9.999e-05,2]
[348858202,1736818245672,-500.0,9.999e-05,2]
[348858203,1736818245682,-772.33,9.999e-05,2]
[348858204,1736818245691,-500.0,9.999e-05,2]
[348858205,1736818245700,-500.0,9.999e-05,2]
[348858206,1736818245710,-500.0,9.999e-05,2]
[348858207,1736818245721,-500.0,9.999e-05,2]
[348858208,1736818245732,-500.0,9.999e-05,2]
[348858209,1736818245743,-500.0,9.999e-05,2]
[348858210,1736818245754,-500.0,9.999e-05,2]
[348858211,1736818245765,-500.0,9.999e-05,2]
[348858212,1736818245777,-500.0,9.999e-05,2]
[348858213,1736818245786,-500.0,9.999e-05,2]
[348858214,1736818245795,-500.0,9.999e-05,2]
[348858215,1736818245804,-894.65,9.999e-05,2]
[348858216,1736818245813,-500.0,9.999e-05,2]
[348858217,1736818245822,-500.0,9.999e-05,2]
[348858218,1736818245831,-500.0,9.999e-05,2]
[348858219,1736818245840,-500.0,9.999e-05,2]
[348858220,1736818245849,-500.0,9.999e-05,2]
[348858221,1736818245859,-500.0,9.999e-05,2]
[348858222,1736818245868,-500.0,9.999e-05,2]
[348858223,1736818245877,-500.0,9.999e-05,2]
[348858224,1736818245886,-500.0,9.999e-05,2]
[348858225,1736818245895,-500.0,9.999e-05,2]
[348858226,1736818245904,-500.0,9.999e-05,2]
[348858227,1736818245914,-469.1947728,9.999e-05,2]
[348858228,1736818245926,-500.0,9.999e-05,2]
[348858229,1736818245937,-500.0,9.999e-05,2]
[348858230,1736818245947,-500.0,9.999e-05,2]
[348858231,1736818245957,-500.0,9.999e-05,2]
[348858232,1736818245968,-500.0,9.999e-05,2]
[348858233,1736818245979,-500.0,9.999e-05,2]
[348858234,1736818245989,-500.0,9.999e-05,2]
[348858235,1736818245998,-500.0,9.999e-05,2]
[348858236,1736818246007,-500.0,9.999e-05,2]
[348858237,1736818246016,-1026.57,9.999e-05,2]
[348858238,1736818246026,-500.0,9.999e-05,2]
[348858239,1736818246036,-500.0,9.999e-05,2]
[348858240,1736818246047,-500.0,9.999e-05,2]
[348858241,1736818246056,-500.0,9.999e-05,2]
[348858242,1736818246066,-500.0,9.999e-05,2]
[348858243,1736818246075,-520.90083521,9.999e-05,2]
[348858244,1736818246084,-500.0,9.999e-05,2]
[348858245,1736818246095,-456.76185416,9.999e-05,2]
[348858246,1736818246104,-500.0,9.999e-05,2]
[348858247,1736818246114,-500.0,9.999e-05,2]
[348858248,1736818246123,-500.0,9.999e-05,2]
[348858249,1736818246132,-500.0,9.999e-05,2]
[348858250,1736818246141,-500.0,9.999e-05,2]
[348858251,1736818246150,-1119.65,9.999e-05,2]
[348858252,1736818246160,-500.0,9.999e-05,2]
[348858253,1736818246170,-500.0,9.999e-05,2]
[348858254,1736818246179,-500.0,9.999e-05,2]
[348858255,1736818246189,-500.0,9.999e-05,2]
[348858256,1736818246198,-502.39407708,9.999e-05,2]
[348858257,1736818246208,-781.77,9.999e-05,2]
[348858258,1736818246218,-500.0,9.999e-05,2]
[348858259,1736818246227,-2286.57,9.999e-05,2]
[348858260,1736818246236,-508.74028037,9.999e-05,2]
[348858261,1736818246245,-500.0,9.999e-05,2]
[348858262,1736818246254,-177.45074641,9.999e-05,2]
[348858263,1736818246263,-500.0,9.999e-05,2]
[348858264,1736818246276,-500.0,9.999e-05,2]
[348858265,1736818246285,-500.0,9.999e-05,2]
[348858266,1736818246295,-500.0,9.999e-05,2]
[348858267,1736818246304,-500.0,9.999e-05,2]
[348858268,1736818246315,-500.0,9.999e-05,2]
[348858269,1736818246324,-1061.0,0.0001,2]
[348858270,1736818246333,-165553.11019498,0.0001,2]
[348858273,1736818246623,-7509.99559041,0.0001,2]
[348858274,1736818246648,-562.39668,0.0001,2]
[348858275,1736818246659,-419.81087525,0.0001,2]
[348858276,1736818246670,-487.98,0.0001,2]
[348858277,1736818246681,-505.79,0.0001,2]
[348858278,1736818246692,-744.5,0.0001,2]
[348858280,1736818247371,-500.0,9.887e-05,2]
[348858281,1736818247381,-5438.15424704,0.0001,2]
[348858282,1736818247392,-481.96507016,0.0001,2]
[348858283,1736818247411,-40124.81351,0.0001,2]
[348858284,1736818247422,-1918.88336097,0.0001,2]
[348858285,1736818247436,-651.86611125,0.0001,2]
[348858286,1736818247448,-8540.0,0.0001,2]
[348858287,1736818247460,-353.67552647,0.0001,2]
[348858288,1736818247473,-1154.16,0.0001,2]
[348858289,1736818247484,-8421.54078821,0.0001,2]
[348858290,1736818247495,-2122.4739642,0.0001,2]
[348858291,1736818247507,-8413.025585,0.0001,2]
[348858292,1736818247519,-9958.5,0.0001,2]
[348858293,1736818247531,-7508.95999576,0.0001,2]
[348858294,1736818247565,-401.96291768,0.0001,2]
[348858295,1736818247576,-1264.76750391,0.0001,2]
[348858296,1736818247587,-2068.77620723,0.0001,2]
[348858297,1736818247598,-2346.19036455,0.0001,2]
[348858298,1736818391179,500.0,0.00023,120]
[348858299,1736818393549,2000.0,0.00023,120]
[348858302,1736818413241,2014.3,0.0002,30]
[348858303,1736818420343,244.677913,0.00023,120]
[348858304,1736818450333,179.02,0.00023,120]
[348858305,1736818477405,3047.26030498,0.0002,30]
[348858307,1736818622056,602.15,8.219e-05,2]
[348858308,1736818700003,-200.0,0.0001,6]
[348858313,1736818811212,-118969.36409503,0.000115,7]
[348858315,1736818991925,2000.0,0.00022353,120]
[348858316,1736819035173,5000.0,0.00023,120]
[348858317,1736819066801,5000.0,0.00023,120]
[348858318,1736819089550,2586.893579,0.00023,120]
[348858319,1736819157136,1046.72,0.00023,120]
[348858320,1736819170679,261.68,8.547e-05,2]
[348858321,1736819188872,785.03,0.00023,120]
[348858332,1736819263715,151.01141,0.00023,120]
[348858346,1736819432373,-300.0,9.031e-05,2]
[348858347,1736819432383,-3809.10376716,9.032e-05,2]
[348858348,1736819432394,-2922.48129656,9.032e-05,2]
[348858352,1736819432572,-12883.62493628,9.032e-05,2]
[348858353,1736819432582,-250.0,9.046e-05,2]
[348858354,1736819432593,-431.51398174,9.046e-05,2]
[348858355,1736819432602,-1000.0,9.068e-05,2]
[348858356,1736819432612,-451.21,9.137e-05,2]
[348858357,1736819432622,-250.0,9.151e-05,2]
[348858358,1736819432631,-173.169,9.5e-05,2]
[348858359,1736819432642,-150.0,9.753e-05,2]
[348858360,1736819432652,-151.42,9.77e-05,2]
[348858361,1736819432662,-154.457,9.785e-05,2]
[348858362,1736819432672,-150.0,9.802e-05,2]
[348858363,1736819432681,-801.17,9.803e-05,2]
[348858364,1736819432690,-1975.26,9.803e-05,2]
[348858365,1736819432699,-500.0,9.803e-05,2]
[348858366,1736819432709,-638.19,9.803e-05,2]
[348858367,1736819432718,-1257.23,9.803e-05,2]
[348858368,1736819432728,-474.58000706,9.803e-05,2]
[348858369,1736819432769,-421.3557999,9.803e-05,2]
[348858402,1736819438490,-602.58419304,9.803e-05,2]
[348858403,1736819438500,-1000.0,9.803e-05,2]
[348858404,1736819438510,-886.15,9.803e-05,2]
[348858405,1736819438519,-667.29758016,9.803e-05,2]
[348858442,1736819440410,-447.15241984,9.803e-05,2]
[348858443,1736819440421,-270.55093985,9.803e-05,2]
[348858444,1736819440434,-229.44906015,9.803e-05,2]
[348858445,1736819440444,-770.03,9.803e-05,2]
[348858446,1736819440454,-2036.27,9.803e-05,2]
[348858447,1736819440464,-1768.39,9.803e-05,2]